fUST/lending_fUST_20260517
["ID","MTS","AMOUNT","RATE_DAILY","PERIOD"]
[422437869,1778947254000,-2604.00780147,5.996e-05,2]
[422437870,1778947271000,-323.54495851,6.027e-05,2]
[422437872,1778947288000,-262.108369,5.966e-05,2]
[422437873,1778947290000,200.0,0.00011727,120]
[422437874,1778947305000,-184.063,6.305e-05,2]
[422437875,1778947322000,-362.0,6.333e-05,2]
[422437876,1778947338000,-300.0,6.333e-05,2]
[422437877,1778947356000,-4700.0,6.334e-05,2]
[422437878,1778947372000,-300.0,6.334e-05,2]
[422437879,1778947389000,-4700.0,6.334e-05,2]
[422437904,1778947832000,-500.0,6.333e-05,2]
[422437905,1778947832000,-500.0,6.333e-05,2]
[422437907,1778947832000,-500.0,6.333e-05,2]
[422437906,1778947832000,-500.0,6.333e-05,2]
[422437908,1778947832000,-500.0,6.333e-05,2]
[422437909,1778947832000,-500.0,6.333e-05,2]
[422437913,1778947832000,-4233.9189053,6.334e-05,2]
[422437910,1778947832000,-650.83292268,6.333e-05,2]
[422437912,1778947832000,-317.07405934,6.333e-05,2]
[422437911,1778947832000,-300.0,6.333e-05,2]
[422437916,1778947833000,-3353.56108125,6.334e-05,2]
[422437974,1778947838000,-2409.0,6.334e-05,2]
[422437981,1778947838000,-54852.30357333,6.334e-05,2]
[422437972,1778947838000,-1864.11663286,6.334e-05,2]
[422438260,1778947840000,-8308.49737407,6.334e-05,2]
[422438599,1778947843000,-244.709897,6.334e-05,2]
[422438596,1778947843000,-1352.99176546,6.334e-05,2]
[422438981,1778947846000,-15649.23815968,6.334e-05,2]
[422438987,1778947847000,-22305.8034694,6.334e-05,2]
[422438988,1778947847000,-4010.0,6.334e-05,2]
[422439030,1778948137000,82.09568114,5.05e-05,2]
[422439035,1778948282000,1209.59966556,5e-05,2]
[422439036,1778948290000,392.20368658,5e-05,2]
[422439037,1778948298000,5000.0,5e-05,2]
[422439624,1778949040000,-796.28155638,5.5e-05,2]
[422439618,1778949040000,-300.0,5.499e-05,2]
[422439622,1778949040000,-300.0,5.499e-05,2]
[422439616,1778949040000,-200.0,5.499e-05,2]
[422439620,1778949040000,-300.0,5.499e-05,2]
[422439626,1778949040000,-766.17765227,5.5e-05,2]
[422439611,1778949040000,-150.14431886,5.05e-05,2]
[422439614,1778949040000,-480.0,5.498e-05,2]
[422439612,1778949040000,-333.55503291,5.106e-05,2]
[422439628,1778949040000,-592.12445735,5.5e-05,2]
[422439635,1778949041000,-979.63953253,5.5e-05,2]
[422439755,1778949041000,-3888.22814465,5.59e-05,2]
[422439751,1778949041000,-2908.06150223,5.5e-05,2]
[422439759,1778949041000,-152.0,6.014e-05,7]
[422439745,1778949041000,-229.29747437,5.5e-05,2]
[422439749,1778949041000,-1852.1715293,5.5e-05,2]
[422439747,1778949041000,-3227.73363054,5.5e-05,2]
[422439753,1778949041000,-240.98131731,5.5e-05,2]
[422439760,1778949041000,-208.775,6.014e-05,2]
[422439762,1778949041000,-187.95582775,6.014e-05,2]
[422439757,1778949041000,-3963.95147515,5.69e-05,2]
[422439786,1778949042000,-409.77714678,6.033e-05,2]
[422439790,1778949042000,-500.0,6.033e-05,2]
[422439796,1778949042000,-500.0,6.033e-05,2]
[422439798,1778949042000,-500.0,6.033e-05,2]
[422439809,1778949042000,-500.0,6.033e-05,2]
[422439811,1778949042000,-500.0,6.033e-05,2]
[422439802,1778949042000,-500.0,6.033e-05,2]
[422439805,1778949042000,-500.0,6.033e-05,2]
[422439784,1778949042000,-500.0,6.033e-05,2]
[422439794,1778949042000,-500.0,6.033e-05,2]
[422439792,1778949042000,-500.0,6.033e-05,2]
[422439770,1778949042000,-500.0,6.033e-05,2]
[422439782,1778949042000,-500.0,6.033e-05,2]
[422439778,1778949042000,-500.0,6.033e-05,2]
[422439776,1778949042000,-377.71984245,6.033e-05,2]
[422439774,1778949042000,-122.28015755,6.033e-05,2]
[422439772,1778949042000,-500.0,6.033e-05,2]
[422439780,1778949042000,-500.0,6.033e-05,2]
[422439768,1778949042000,-500.0,6.033e-05,2]
[422439766,1778949042000,-500.0,6.033e-05,2]
[422439764,1778949042000,-500.0,6.033e-05,2]
[422439804,1778949042000,-500.0,6.033e-05,2]
[422439788,1778949042000,-500.0,6.033e-05,2]
[422439800,1778949042000,-500.0,6.033e-05,2]
[422439829,1778949042000,-500.0,6.033e-05,2]
[422439819,1778949042000,-500.0,6.033e-05,2]
[422439856,1778949042000,-456.2549008,6.118e-05,2]
[422439850,1778949042000,-151.0,6.033e-05,2]
[422439852,1778949042000,-1411444.37482435,6.034e-05,2]
[422439854,1778949042000,-55121.41625573,6.034e-05,2]
[422439860,1778949042000,-173271.24352368,6.365e-05,2]
[422439862,1778949042000,-64176.66551385,6.365e-05,2]
[422439848,1778949042000,-586.96421844,6.033e-05,2]
[422439846,1778949042000,-500.0,6.033e-05,2]
[422439844,1778949042000,-500.0,6.033e-05,2]
[422439835,1778949042000,-500.0,6.033e-05,2]
[422439831,1778949042000,-500.0,6.033e-05,2]
[422439842,1778949042000,-500.0,6.033e-05,2]
[422439833,1778949042000,-500.0,6.033e-05,2]
[422439838,1778949042000,-500.0,6.033e-05,2]
[422439858,1778949042000,-11981.96282756,6.118e-05,2]
[422439825,1778949042000,-505.95826329,6.033e-05,2]
[422439827,1778949042000,-500.0,6.033e-05,2]
[422439823,1778949042000,-532.94855432,6.033e-05,2]
[422439821,1778949042000,-500.0,6.033e-05,2]
[422439813,1778949042000,-500.0,6.033e-05,2]
[422439815,1778949042000,-500.0,6.033e-05,2]
[422439817,1778949042000,-500.0,6.033e-05,2]
[422439840,1778949042000,-500.0,6.033e-05,2]
[422439807,1778949042000,-500.0,6.033e-05,2]
[422440049,1778949043000,-2229.23520279,6.365e-05,2]
[422440028,1778949043000,-999.0,6.365e-05,2]
[422440392,1778949046000,-771.58931556,6.365e-05,2]
[422442824,1778949207000,-151.0,8.004e-05,30]
[422442825,1778949208000,-1.0,8.004e-05,30]
[422442832,1778950061000,1788.56128278,5e-05,2]
[422442833,1778950070000,2962.87162929,5e-05,2]
[422442834,1778950078000,5000.0,5e-05,2]
[422442896,1778950232000,-300.0,5.399e-05,2]
[422442894,1778950232000,-300.0,5.399e-05,2]
[422442898,1778950232000,-300.0,5.399e-05,2]
[422442900,1778950232000,-1200.0,5.399e-05,2]
[422442890,1778950232000,-326.88393225,5.225e-05,2]
[422442892,1778950232000,-300.0,5.399e-05,2]
[422442888,1778950232000,-332.93388888,5.133e-05,2]
[422442902,1778950232000,-18181.85,5.4e-05,2]
[422442906,1778950232000,-7469.23316936,5.5e-05,2]
[422442908,1778950232000,-8361.48004525,5.587e-05,2]
[422442910,1778950232000,-9000.45978678,5.687e-05,2]
[422442912,1778950232000,-253.26713444,5.687e-05,2]
[422442914,1778950232000,-187.49717269,5.733e-05,2]
[422442904,1778950232000,-3830.85213471,5.5e-05,2]
[422443253,1778950241000,-486.50850877,5.733e-05,2]
[422443251,1778950241000,-500.0,5.733e-05,2]
[422443273,1778950241000,-767.6686078,6.339e-05,2]
[422443265,1778950241000,-151.0,6.102e-05,2]
[422443263,1778950241000,-420.0,5.939e-05,2]
[422443255,1778950241000,-500.0,5.733e-05,2]
[422443261,1778950241000,-9407.11979554,5.787e-05,2]
[422443259,1778950241000,-21010.60407497,5.734e-05,2]
[422443249,1778950241000,-427.2748889,5.733e-05,2]
[422443257,1778950241000,-500.0,5.733e-05,2]
[422443271,1778950241000,-166.4964389,6.339e-05,2]
[422443267,1778950241000,-218.9301277,6.102e-05,2]
[422443290,1778950241000,-500.0,6.491e-05,2]
[422443274,1778950241000,-500.0,6.491e-05,2]
[422443298,1778950241000,-593.73995205,6.491e-05,2]
[422443302,1778950241000,-500.0,6.492e-05,2]
[422443300,1778950241000,-334.96646038,6.492e-05,2]
[422443296,1778950241000,-500.0,6.491e-05,2]
[422443294,1778950241000,-500.0,6.491e-05,2]
[422443269,1778950241000,-326.5702107,6.102e-05,2]
[422443284,1778950241000,-500.0,6.491e-05,2]
[422443282,1778950241000,-500.0,6.491e-05,2]
[422443292,1778950241000,-500.0,6.491e-05,2]
[422443280,1778950241000,-500.0,6.491e-05,2]
[422443276,1778950241000,-500.0,6.491e-05,2]
[422443278,1778950241000,-500.0,6.491e-05,2]
[422443696,1778950244000,-1990.70963771,6.492e-05,2]
[422444076,1778950246000,-200.0,0.00016341,120]
[422444061,1778950246000,-200.0,0.00013736,120]
[422444068,1778950246000,-200.0,0.00014447,120]
[422444125,1778950247000,-801.01,6.492e-05,2]
[422444092,1778950247000,-5935.26702118,6.492e-05,2]
[422445006,1778950290000,200.0,0.00011842,120]
[422445008,1778950411000,3000.0,8e-05,30]
[422445009,1778950530000,200.0,0.00014832,120]
[422445011,1778950531000,163.209346,4.554e-05,120]
[422445010,1778950531000,163.209346,4.554e-05,2]
[422445012,1778950546000,17564.67108764,0.00016,120]
[422445031,1778950803000,2003.81898944,0.00017808,120]
[422445030,1778950803000,11000.0,0.00017808,120]
[422445032,1778950812000,11000.0,0.00017808,120]
[422445033,1778950814000,11000.0,0.00017808,120]
[422445034,1778950816000,11000.0,0.00017808,120]
[422445035,1778950818000,11000.0,0.00017808,120]
[422445036,1778950819000,11000.0,0.00017808,120]
[422445037,1778950835000,-4262.41589824,5.103e-05,2]
[422445039,1778950851000,-500.0,5.103e-05,2]
[422445041,1778950868000,11369.83782987,0.00017808,120]
[422445040,1778950868000,-3743.00724153,5.052e-05,2]
[422445042,1778950886000,-500.0,5.103e-05,2]
[422445043,1778950890000,200.0,0.00016095,120]
[422445044,1778950902000,-500.0,5.103e-05,2]
[422445045,1778950919000,-1200.0,5.154e-05,2]
[422445046,1778950936000,-346.60616127,5.181e-05,2]
[422445048,1778950953000,-300.0,5.206e-05,2]
[422445057,1778950969000,-200.0,5.37e-05,2]
[422445058,1778950970000,163.0764914,2.316e-05,2]
[422445059,1778951011000,200.0,0.00013689,120]
[422445061,1778951127000,1586.50582698,0.00012,120]
[422445062,1778951130000,200.0,0.00014865,120]
[422445065,1778951190000,200.0,0.00016698,120]
[422445072,1778951370000,200.0,0.00016946,120]
[422445073,1778951430000,200.0,0.0001643,120]
[422445147,1778951432000,-2342.67947986,5.664e-05,2]
[422445135,1778951432000,-339.67403805,5.272e-05,2]
[422445134,1778951432000,-5000.0,5.264e-05,2]
[422445136,1778951432000,-525.6468727,5.281e-05,2]
[422445137,1778951432000,-300.0,5.479e-05,2]
[422445138,1778951432000,-300.0,5.499e-05,2]
[422445139,1778951432000,-1477.23833214,5.5e-05,2]
[422445132,1778951432000,-2120.7210039,5.211e-05,2]
[422445142,1778951432000,-3575.35579767,5.502e-05,2]
[422445143,1778951432000,-3195.0539458,5.564e-05,2]
[422445144,1778951432000,-200.0,5.6e-05,2]
[422445141,1778951432000,-2663.6159862,5.5e-05,2]
[422445145,1778951432000,-3295.86058508,5.602e-05,2]
[422445146,1778951432000,-917.32052014,5.602e-05,2]
[422445140,1778951432000,-1114.05086717,5.5e-05,2]
[422445186,1778951439000,-1890.92690199,5.702e-05,2]
[422445183,1778951439000,-1186.78414555,5.664e-05,2]
[422445319,1778951444000,-325.69070486,5.702e-05,2]
[422445320,1778951444000,-2277.32852476,5.702e-05,2]
[422445336,1778951447000,-2012.20478813,6.102e-05,2]
[422445343,1778951447000,-456.513297,6.108e-05,2]
[422445341,1778951447000,-151.0,6.108e-05,2]
[422445334,1778951447000,-152.0,6.016e-05,7]
[422445337,1778951447000,-151.0,6.102e-05,2]
[422445338,1778951447000,-325.9079251,6.102e-05,2]
[422445339,1778951447000,-456.513297,6.102e-05,2]
[422445335,1778951447000,-420.0,6.049e-05,2]
[422445326,1778951447000,-36.27659889,5.702e-05,2]
[422445327,1778951447000,-3580.2773171,5.764e-05,2]
[422445333,1778951447000,-5762.74622425,5.902e-05,2]
[422445330,1778951447000,-3863.87330512,5.864e-05,2]
[422445332,1778951447000,-627.52451288,5.901e-05,2]
[422445345,1778951447000,-456.513297,6.108e-05,2]
[422445328,1778951447000,-5485.08966344,5.802e-05,2]
[422445329,1778951447000,-191.9171519,5.814e-05,2]
[422445331,1778951447000,-387.42109736,5.901e-05,2]
[422445340,1778951447000,-151.0,6.102e-05,2]
[422445342,1778951447000,-325.8907786,6.108e-05,2]
[422445358,1778951447000,-444.91581557,6.49e-05,2]
[422445344,1778951447000,-156.440622,6.108e-05,2]
[422445346,1778951447000,-212.9144438,6.108e-05,2]
[422445365,1778951447000,-92117.00150208,6.491e-05,2]
[422445362,1778951447000,-500.0,6.49e-05,2]
[422445364,1778951447000,-500.0,6.49e-05,2]
[422445360,1778951447000,-500.0,6.49e-05,2]
[422445361,1778951447000,-500.0,6.49e-05,2]
[422445353,1778951447000,-151.0,6.108e-05,2]
[422445356,1778951447000,-500.0,6.49e-05,2]
[422445355,1778951447000,-500.0,6.49e-05,2]
[422445363,1778951447000,-500.0,6.49e-05,2]
[422445359,1778951447000,-500.0,6.49e-05,2]
[422445357,1778951447000,-500.0,6.49e-05,2]
[422445351,1778951447000,-325.8907786,6.108e-05,2]
[422445348,1778951447000,-325.8907786,6.108e-05,2]
[422445349,1778951447000,-325.8907786,6.108e-05,2]
[422445347,1778951447000,-325.8907786,6.108e-05,2]
[422445352,1778951447000,-456.513297,6.108e-05,2]
[422445354,1778951447000,-326.3278131,6.108e-05,2]
[422445350,1778951447000,-325.8907786,6.108e-05,2]
[422445366,1778951490000,200.0,0.00013354,120]
[422445367,1778951602000,153.56,6.706e-05,18]
[422445368,1778951670000,200.0,0.00013032,120]
[422445369,1778951730000,200.0,0.00017574,120]
[422445370,1778951886000,165.848715,2.295e-05,2]
[422445371,1778951887000,165.848715,4.499e-05,2]
[422445374,1778951970000,200.0,0.00011669,120]
[422445375,1778952030000,200.0,0.00011608,120]
[422445377,1778952090000,200.0,0.00016643,120]
[422445378,1778952216000,176.747651,4.533e-05,2]
[422445379,1778952270000,200.0,0.00012902,120]
[422445380,1778952390000,200.0,0.00014238,120]
[422445381,1778952400000,5000.0,5e-05,2]
[422445383,1778952423000,5000.0,5e-05,2]
[422445384,1778952445000,1504.08874242,5e-05,2]
[422445385,1778952450000,200.0,0.00017808,120]
[422445520,1778952601000,2255.02768222,5e-05,2]
[422445521,1778952630000,200.0,0.00012302,120]
[422445539,1778952631000,-325.8907786,5.281e-05,2]
[422445538,1778952631000,-367.1961194,5.102e-05,2]
[422445540,1778952632000,-325.8907786,5.286e-05,2]
[422445541,1778952632000,-456.513297,5.286e-05,2]
[422445544,1778952632000,-226.0,5.499e-05,2]
[422445543,1778952632000,-300.0,5.499e-05,2]
[422445542,1778952632000,-300.0,5.499e-05,2]
[422445545,1778952632000,-300.0,5.499e-05,2]
[422445549,1778952632000,-6927.35919002,5.5e-05,2]
[422445550,1778952632000,-5698.95793057,5.5e-05,2]
[422445547,1778952632000,-1200.0,5.499e-05,2]
[422445546,1778952632000,-300.0,5.499e-05,2]
[422445554,1778952632000,-608.24692022,5.518e-05,2]
[422445552,1778952632000,-9067.06737631,5.518e-05,2]
[422445553,1778952632000,-139744.82910173,5.518e-05,2]
[422445555,1778952632000,-5940.424,5.518e-05,2]
[422445548,1778952632000,-2330.84848483,5.5e-05,2]
[422445551,1778952632000,-8923.83694294,5.5e-05,2]
[422445562,1778952638000,-701663.19037603,5.518e-05,2]
[422445607,1778952643000,-80150.38668207,5.518e-05,2]
[422445608,1778952643000,-2386.5768774,5.518e-05,2]
[422445612,1778952646000,-32121.92272917,5.518e-05,2]
[422445615,1778952690000,200.0,0.00014436,120]
[422445617,1778952746000,165.595106,2.323e-05,2]
[422445618,1778952747000,165.595106,4.555e-05,2]
[422445632,1778952750000,200.0,0.00016494,120]
[422445638,1778952870000,200.0,0.00017579,120]
[422445642,1778953091000,262.3599267,4.457e-05,2]
[422445652,1778953229000,5000.0,5e-05,2]
[422445653,1778953230000,200.0,0.00012457,120]
[422445654,1778953237000,2059.64075307,5e-05,2]
[422445665,1778953350000,200.0,0.00011798,120]
[422445666,1778953410000,200.0,0.00016536,120]
[422445669,1778953470000,200.0,0.00017124,120]
[422445693,1778953562000,163.40675625,4.94e-05,2]
[422445696,1778953591000,200.0,0.00016692,120]
[422445698,1778953632000,1235.0,0.00017808,120]
[422445699,1778953634000,4877.18678666,5e-05,2]
[422445700,1778953644000,405.9519642,4.464e-05,2]
[422445702,1778953682000,163.40675624,4.939e-05,2]
[422445707,1778953746000,151.0,4.464e-05,2]
[422445711,1778953762000,151.0,4.464e-05,2]
[422445719,1778953770000,200.0,0.00014216,120]
[422445720,1778953783000,1774.1,0.00017808,120]
[422445758,1778953832000,-300.0,5.499e-05,2]
[422445760,1778953832000,-923.58876399,5.499e-05,2]
[422445756,1778953832000,-300.0,5.499e-05,2]
[422445750,1778953832000,-394.96938973,5.084e-05,2]
[422445754,1778953832000,-1200.0,5.499e-05,2]
[422445752,1778953832000,-229.99,5.179e-05,2]
[422445990,1778953838000,-500.0,5.517e-05,2]
[422445980,1778953838000,-500.0,5.517e-05,2]
[422445977,1778953838000,-205.27528512,5.517e-05,2]
[422445979,1778953838000,-500.0,5.517e-05,2]
[422445982,1778953838000,-500.0,5.517e-05,2]
[422445997,1778953838000,-500.0,5.517e-05,2]
[422445995,1778953838000,-500.0,5.517e-05,2]
[422445993,1778953838000,-500.0,5.517e-05,2]
[422445999,1778953838000,-500.0,5.517e-05,2]
[422445984,1778953838000,-500.0,5.517e-05,2]
[422446004,1778953838000,-500.0,5.517e-05,2]
[422446012,1778953838000,-500.0,5.517e-05,2]
[422446002,1778953838000,-500.0,5.517e-05,2]
[422446011,1778953838000,-500.0,5.517e-05,2]
[422446015,1778953838000,-500.0,5.517e-05,2]
[422446017,1778953838000,-500.0,5.517e-05,2]
[422446009,1778953838000,-500.0,5.517e-05,2]
[422446021,1778953838000,-500.0,5.517e-05,2]
[422446007,1778953838000,-500.0,5.517e-05,2]
[422446018,1778953838000,-500.0,5.517e-05,2]
[422446001,1778953838000,-500.0,5.517e-05,2]
[422445988,1778953838000,-500.0,5.517e-05,2]
[422445959,1778953838000,-511.46843244,5.517e-05,2]
[422445975,1778953838000,-500.0,5.517e-05,2]
[422445941,1778953838000,-6690.9718909,5.5e-05,2]
[422445943,1778953838000,-15869.54431411,5.5e-05,2]
[422445946,1778953838000,-14297.5898827,5.5e-05,2]
[422445945,1778953838000,-12725.63545137,5.5e-05,2]
[422445939,1778953838000,-6800.0,5.5e-05,2]
[422445937,1778953838000,-276.41123601,5.499e-05,2]
[422445950,1778953838000,-500.0,5.517e-05,2]
[422446023,1778953838000,-500.0,5.517e-05,2]
[422445957,1778953838000,-500.0,5.517e-05,2]
[422445986,1778953838000,-500.0,5.517e-05,2]
[422445953,1778953838000,-500.0,5.517e-05,2]
[422445948,1778953838000,-50000.0,5.517e-05,2]
[422445955,1778953838000,-500.0,5.517e-05,2]
[422445963,1778953838000,-500.0,5.517e-05,2]
[422445965,1778953838000,-531.57286838,5.517e-05,2]
[422445968,1778953838000,-272.79009297,5.517e-05,2]
[422445970,1778953838000,-500.0,5.517e-05,2]
[422445967,1778953838000,-500.0,5.517e-05,2]
[422445971,1778953838000,-500.0,5.517e-05,2]
[422445973,1778953838000,-500.0,5.517e-05,2]
[422445961,1778953838000,-439.06521334,5.517e-05,2]
[422446025,1778953838000,-500.0,5.517e-05,2]
[422446031,1778953838000,-500.0,5.517e-05,2]
[422446037,1778953838000,-500.0,5.517e-05,2]
[422446082,1778953838000,-500.0,5.517e-05,2]
[422446027,1778953838000,-500.0,5.517e-05,2]
[422446086,1778953838000,-481.0,6.049e-05,2]
[422446084,1778953838000,-16502.42972725,5.525e-05,2]
[422446080,1778953838000,-350.0,5.517e-05,2]
[422446083,1778953838000,-2173.34967383,5.522e-05,2]
[422446090,1778953838000,-162.380719,6.17e-05,2]
[422446081,1778953838000,-500.0,5.517e-05,2]
[422446091,1778953838000,-537.6845,6.17e-05,2]
[422446078,1778953838000,-500.0,5.517e-05,2]
[422446092,1778953838000,-557.5788265,6.225e-05,2]
[422446085,1778953838000,-152.0,6.017e-05,7]
[422446088,1778953838000,-1680.0,6.049e-05,2]
[422446094,1778953838000,-74787.98285964,6.301e-05,2]
[422446096,1778953838000,-567636.41345286,6.301e-05,2]
[422446098,1778953838000,-163.20936501,6.34e-05,2]
[422446093,1778953838000,-578.20924308,6.28e-05,2]
[422446099,1778953838000,-621.78829552,6.39e-05,2]
[422446095,1778953838000,-60989.53051027,6.301e-05,2]
[422446097,1778953838000,-599.60298507,6.335e-05,2]
[422446087,1778953838000,-420.0,6.049e-05,2]
[422446072,1778953838000,-500.0,5.517e-05,2]
[422446089,1778953838000,-229.99,6.063e-05,2]
[422446070,1778953838000,-500.0,5.517e-05,2]
[422446039,1778953838000,-500.0,5.517e-05,2]
[422446029,1778953838000,-500.0,5.517e-05,2]
[422446040,1778953838000,-500.0,5.517e-05,2]
[422446046,1778953838000,-500.0,5.517e-05,2]
[422446034,1778953838000,-500.0,5.517e-05,2]
[422446033,1778953838000,-500.0,5.517e-05,2]
[422446076,1778953838000,-500.0,5.517e-05,2]
[422446044,1778953838000,-500.0,5.517e-05,2]
[422446048,1778953838000,-500.0,5.517e-05,2]
[422446050,1778953838000,-500.0,5.517e-05,2]
[422446042,1778953838000,-500.0,5.517e-05,2]
[422446054,1778953838000,-251.98674281,5.517e-05,2]
[422446052,1778953838000,-500.0,5.517e-05,2]
[422446062,1778953838000,-500.0,5.517e-05,2]
[422446060,1778953838000,-500.0,5.517e-05,2]
[422446058,1778953838000,-500.0,5.517e-05,2]
[422446074,1778953838000,-500.0,5.517e-05,2]
[422446066,1778953838000,-500.0,5.517e-05,2]
[422446056,1778953838000,-500.0,5.517e-05,2]
[422446064,1778953838000,-354.64649246,5.517e-05,2]
[422446068,1778953838000,-500.0,5.517e-05,2]
[422446112,1778953839000,-773.2413689,6.72e-05,2]
[422446103,1778953839000,-1413.0,6.56e-05,2]
[422446101,1778953839000,-668.65185757,6.5e-05,2]
[422446100,1778953839000,-644.79446246,6.445e-05,2]
[422446104,1778953839000,-647.0,6.56e-05,2]
[422446108,1778953839000,-587.0,6.654e-05,2]
[422446107,1778953839000,-719.04747942,6.61e-05,2]
[422446106,1778953839000,-475.506,6.56e-05,2]
[422446114,1778953839000,-831.51979763,6.83e-05,2]
[422446102,1778953839000,-693.3919763,6.555e-05,2]
[422446111,1778953839000,-5414.54428638,6.697e-05,2]
[422446119,1778953839000,-5077.43394479,6.834e-05,2]
[422446117,1778953839000,-27854.63210896,6.834e-05,2]
[422446118,1778953839000,-38614.99999999,6.834e-05,2]
[422446116,1778953839000,-20952.33928004,6.834e-05,2]
[422446109,1778953839000,-2338.0,6.654e-05,2]
[422446115,1778953839000,-3349346.11826026,6.834e-05,2]
[422446113,1778953839000,-801.85129955,6.775e-05,2]
[422446110,1778953839000,-745.65223616,6.665e-05,2]
[422446105,1778953839000,-2202.0,6.56e-05,2]
[422446126,1778953840000,-1835.490239,6.834e-05,2]
[422446125,1778953840000,-151.0,6.301e-05,2]
[422446143,1778953843000,-1126.90394658,6.834e-05,2]
[422446142,1778953843000,-2499.67735365,6.834e-05,2]
[422446140,1778953843000,-4653.67113488,6.834e-05,2]
[422446141,1778953843000,-3402.83085448,6.834e-05,2]
[422446136,1778953843000,-151.0,6.301e-05,2]
[422446138,1778953843000,-5300.64515355,6.834e-05,2]
[422446139,1778953843000,-1900.28465855,6.834e-05,2]
[422446137,1778953843000,-3609.69619092,6.697e-05,2]
[422446148,1778953846000,-19949.58460613,6.834e-05,2]
[422446149,1778953846000,-1105.70016992,6.834e-05,2]
[422446150,1778953846000,-4106.80678666,6.834e-05,2]
[422446151,1778953846000,-104157.41596091,6.834e-05,2]
[422446147,1778953846000,-2406.46412728,6.697e-05,2]
[422446152,1778953890000,200.0,0.00017036,120]
[422446153,1778954003000,3000.0,8e-05,30]
[422446218,1778955032000,-45790.80267905,6.534e-05,2]
[422446213,1778955032000,-325.8907786,6.075e-05,2]
[422446216,1778955032000,-300.0,6.533e-05,2]
[422446207,1778955032000,-152.0,6.016e-05,7]
[422446209,1778955032000,-152.0,6.016e-05,7]
[422446205,1778955032000,-397.09030384,5.634e-05,2]
[422446201,1778955032000,-1749.49485236,5.494e-05,2]
[422446211,1778955032000,-456.513297,6.075e-05,2]
[422446203,1778955032000,-401.9376245,5.549e-05,2]
[422446326,1778955046000,-3817.50495095,6.534e-05,2]
[422446356,1778955357000,678.77,0.000178,120]
[422446357,1778955546000,598.36613474,6.917e-05,21]
[422446358,1778955834000,5000.0,5e-05,2]
[422446360,1778955842000,5000.0,5e-05,2]
[422446430,1778956232000,-440.26430713,5.053e-05,2]
[422446594,1778956238000,-500.0,6.233e-05,2]
[422446580,1778956238000,-413.79927587,5.079e-05,2]
[422446586,1778956238000,-500.0,6.233e-05,2]
[422446587,1778956238000,-500.0,6.233e-05,2]
[422446581,1778956238000,-210.28632338,5.394e-05,2]
[422446585,1778956238000,-5699.47785578,6.233e-05,2]
[422446588,1778956238000,-500.0,6.233e-05,2]
[422446602,1778956238000,-62834.85286892,6.234e-05,2]
[422446584,1778956238000,-1200.0,6.232e-05,2]
[422446579,1778956238000,-789.33153092,5.053e-05,2]
[422446590,1778956238000,-361.33186031,6.233e-05,2]
[422446582,1778956238000,-152.0,6.018e-05,7]
[422446598,1778956238000,-403.02790271,6.233e-05,2]
[422446589,1778956238000,-500.0,6.233e-05,2]
[422446596,1778956238000,-500.0,6.233e-05,2]
[422446593,1778956238000,-500.0,6.233e-05,2]
[422446595,1778956238000,-235.46464925,6.233e-05,2]
[422446599,1778956238000,-500.0,6.233e-05,2]
[422446600,1778956238000,-550.0,6.233e-05,2]
[422446591,1778956238000,-500.0,6.233e-05,2]
[422446592,1778956238000,-500.0,6.233e-05,2]
[422446597,1778956238000,-500.0,6.233e-05,2]
[422446601,1778956238000,-4347.79850656,6.234e-05,2]
[422446583,1778956238000,-300.0,6.232e-05,2]
[422446643,1778956243000,-557.18407237,6.234e-05,2]
[422446644,1778956244000,-575.41076325,6.234e-05,2]
[422446656,1778956247000,-5070.47952164,6.234e-05,2]
[422446653,1778956247000,-304.0,6.234e-05,2]
[422446654,1778956247000,-2699.90228383,6.234e-05,2]
[422446652,1778956247000,-7000.0,6.234e-05,2]
[422446651,1778956247000,-3361.84,6.234e-05,2]
[422446664,1778956733000,5005.73,7e-05,10]
[422446682,1778957408000,1242.94698059,5e-05,2]
[422446709,1778957432000,-1466.30417787,5.099e-05,2]
[422446716,1778957432000,-338.712,5.099e-05,2]
[422446859,1778957439000,-151.0,5.618e-05,2]
[422446865,1778957439000,-500.0,5.887e-05,2]
[422446860,1778957439000,-1680.0,5.664e-05,2]